Cogmind - Beta 16 @@@ ROGUE MODE // 2025.10.24 @ 18:33:40 Player: shapeshifter Result: Destroyed by BJ-5HP(R) with Subdweller Machine Gun Performance ------------- Evolutions (0) 0 Regions Visited (3) 600 Robots Destroyed (14) 70 Value Destroyed (336) 336 Prototype IDs (12) 240 Alien Tech Used (0) 0 Bonus (0) 0 TOTAL SCORE: 1246 Bonus ------- None Cogmind --------- Core Integrity 0/250 Matter 223/300 Energy 61/100 System Corruption 0% Temperature Cool (5) Movement Rolling (107) Ox1 Location -10/Subcaves Parts ------- > --- POWER (1) -------- (None) > --- PROPULSION (2) --- Wheel Subdweller Monowheel > --- UTILITY (2) ------ High-capacity Storage Unit Structural Scanner > --- WEAPON (2) ------- Subdweller Beam Cannon Light Assault Rifle > --- INVENTORY (20) --- Subdweller Power Source Meta Core Light Treads Disposable Heat Sink Disposable Heat Sink Small Storage Unit Huge Storage Unit Subdweller Optics Improved Terrain Scanner Seismic Detector Subdweller Laser Subdweller Beam Cannon Rocket Launcher Peak State ------------ > --- POWER ------------ Light Ion Engine > --- PROPULSION ------- Wheel Subdweller Monowheel > --- UTILITY ---------- High-capacity Storage Unit Structural Scanner > --- WEAPON ----------- Subdweller Beam Cannon Light Assault Rifle > --- INVENTORY -------- Subdweller Power Source Meta Core Light Treads Disposable Heat Sink Disposable Heat Sink Small Storage Unit Huge Storage Unit Subdweller Optics Improved Terrain Scanner Seismic Detector Subdweller Laser Subdweller Beam Cannon Rocket Launcher [Rating: 12] Favorites ----------- Power Ion Engine Engine Ion Engine Propulsion Light Treads Treads Light Treads Wheel Subdweller Monowheel Utility Structural Scanner Device Structural Scanner Storage Small Storage Unit Weapon Assault Rifle Energy Gun Small Laser Energy Cannon Subdweller Beam Cannon Ballistic Gun Assault Rifle Launcher Rocket Launcher Build | -11 -10 -10 -10 ------- Run | Yrd Mat Min Sub Slots Evolved . | . . . . Power . | . . . . Propulsion . | . . . . Utility . | . . . . Weapon . | . . . . Parts Attached 20 | 7 . 3 10 Power 2 | 1 . . 1 Engine 2 | 1 . . 1 Core . | . . . . Reactor . | . . . . Propulsion 5 | 2 . . 3 Treads 2 | 2 . . . Leg . | . . . . Wheel 3 | . . . 3 Hover . | . . . . Flight . | . . . . Utility 5 | 2 . 2 1 Device 3 | 1 . 2 . Storage 2 | 1 . . 1 Processor . | . . . . Hackware . | . . . . Protection . | . . . . Artifact . | . . . . Weapon 8 | 2 . 1 5 Energy Gun 1 | 1 . . . Energy Cannon 2 | . . . 2 Ballistic Gun 4 | 1 . 1 2 Ballistic Cannon . | . . . . Launcher 1 | . . . 1 Special Weapon . | . . . . Impact Weapon . | . . . . Slashing Weapon . | . . . . Piercing Weapon . | . . . . Special Melee Weapon . | . . . . Unidentified Prototypes . | . . . . Parts Lost 7 | . . . 7 Power 2 | . . . 2 Propulsion 2 | . . . 2 Utility . | . . . . Weapon 3 | . . . 3 Highest Loss Streak 5 | . . . 5 To Critical Strikes . | . . . . Average Backups 9 | 3 5 8 13 Power . | . . . . Propulsion 2 | 2 2 2 2 Utility 4 | . 1 4 6 Weapon 2 | . 1 2 4 Tool/Special . | . . . . Unused Backups 10 | . 2 1 7 Power 2 | . 1 . 1 Propulsion . | . . . . Utility 4 | . . . 4 Weapon 3 | . 1 1 1 Tool/Special 1 | . . . 1 Average Slot Usage (%) 99 | . 100 100 98 Engine 13 | . 14 14 13 Treads 23 | . 28 28 18 Wheel 4 | . . . 8 Device 14 | . 14 14 14 Storage 14 | . 14 14 14 Energy Gun 6 | . 14 11 . Energy Cannon 2 | . . . 5 Ballistic Gun 18 | . 14 16 21 Peak Build Rating 12 | 7 8 9 12 Average Rating 8 | 4 7 8 9 On Entrance 5 | . 7 8 8 Avg Prop Armor Cover (%) 12 | . . . 12 Naked Turns . | . . . . Heaviest Build 55 | 14 14 14 55 Greatest Support 40 | 40 40 40 40 Greatest Overweight (x) 2 | 1 . . 2 Average Overweight (x) . | . . . 1 Largest Inventory Capacity 20 | 8 8 8 20 Average Capacity 13 | 7 8 8 19 Most Carried 16 | 6 8 8 16 Average Carried 9 | 3 5 7 13 Final Capacity 20 | 8 8 8 20 Final Carried 13 | 5 8 8 13 Class Distribution -------------------- 91% | Mutant 8% | Scavenger-Mutant Dominant Class ---------------- Mutant | -10/Materials Mutant | -10/Mines Mutant | -10/Subcaves Resources | -11 -10 -10 -10 ----------- Run | Yrd Mat Min Sub Matter Collected 584 | 179 59 143 203 Remotely . | . . . . Salvage Created 389 | 32 73 53 231 Parts 33 | 7 10 . 16 Haulers Intercepted . | . . . . Recyclers Shooed 1 | . 1 . . Parts Field Recycled . | . . . . Retrieved Matter . | . . . . Parts Self-Destructed 15 | . . . 15 Prevented . | . . . . Parts Restored . | . . . . Kills | -11 -10 -10 -10 ------- Run | Yrd Mat Min Sub Combat Hostiles Destroyed 11 | . 3 3 5 Guns 11 | . 3 3 5 Classes Destroyed 6 | 1 2 1 2 Tunneler 2 | 2 . . . Turret 2 | . . . 2 Watcher 2 | . 2 . . Swarmer 3 | . 3 . . Subdweller 5 | . . . 5 Assembled 3 | . . 3 . Best Kill Streak 3 | 1 3 2 2 Combat Bots Only 3 | . 3 2 1 Max Kills in Single Turn 1 | 1 1 1 1 Gunslinging . | . . . . Exploded . | . . . . Melee . | . . . . Uniques/NPCs Destroyed . | . . . . Combat | -11 -10 -10 -10 -------- Run | Yrd Mat Min Sub Hostile Shots Fired 130 | . 14 16 100 Missed 48 | . 4 9 35 Hits 82 | . 10 7 65 Melee 2 | . . 2 . Projectile 80 | . 10 5 65 Critical Strikes 3 | . . . 3 Damage Taken 1208 | . 89 124 995 Core 254 | . 6 28 220 Absorbed by Shields . | . . . . Core Remaining (%) 100 | 100 . . . Volleys Fired 100 | 6 10 11 73 Largest 2 | 2 2 2 2 Hottest 100 | 60 60 60 100 Shots Fired 166 | 12 20 22 112 Gun 128 | 12 20 22 74 Cannon 31 | . . . 31 Launcher 7 | . . . 7 Special . | . . . . Kinetic 101 | 6 10 11 74 Thermal 58 | 6 10 11 31 Explosive 7 | . . . 7 Electromagnetic . | . . . . Robot Hit Streak 15 | 4 8 8 15 Robot Miss Streak 2 | 2 2 2 2 Penetration Max . | . . . . Secondary Targets 3 | . 2 . 1 Max Gunslinging Chain 1 | . 1 . 1 Shots Hit Robots 91 | 8 12 12 59 Core Hits 38 | 3 6 5 24 Critical Kills . | . . . . Critical Parts Destroyed . | . . . . Critical Strikes 1 | . . . 1 Destroy 1 | . . . 1 Melee Attacks . | . . . . Impact . | . . . . Slashing . | . . . . Piercing . | . . . . Sneak Attacks . | . . . . Combat Hostiles . | . . . . Follow-up Attacks . | . . . . Damage Inflicted 1241 | 99 141 135 866 Guns 950 | 99 141 135 575 Cannons 174 | . . . 174 Explosions 117 | . . . 117 Melee . | . . . . Ramming . | . . . . Kinetic 787 | 65 86 61 575 Thermal 337 | 34 55 74 174 Explosive 117 | . . . 117 Electromagnetic . | . . . . Impact . | . . . . Slashing . | . . . . Piercing . | . . . . Highest Corruption . | . . . . Average Corruption . | . . . . Corruption Purged . | . . . . Corruption Blocked . | . . . . Overload Shots . | . . . . Overflow Damage . | . . . . Projectiles . | . . . . Explosions . | . . . . Melee . | . . . . Knockbacks . | . . . . Impact . | . . . . Kinetic . | . . . . Secondary . | . . . . Self-Inflicted Damage 33 | . . . 33 Shots 1 | . . . 1 Rammed . | . . . . Targets Rammed . | . . . . Kicked . | . . . . Crushed . | . . . . Highest Temperature 66 | . . . 66 Average Temperature 24 | . . . 24 Received Heat Transfer 246 | . . . 246 Siege Activations . | . . . . Martial Activations . | . . . . Shielding Activations . | . . . . Robots Disrupted . | . . . . Combat Hostiles . | . . . . Robots Corrupted . | . . . . Combat Hostiles . | . . . . Parts Fried . | . . . . Impact Corruptions . | . . . . Robots Melted . | . . . . Combat Hostiles . | . . . . Parts Melted 1 | . . . 1 Heat Transferred 597 | 75 125 175 222 Parts Sabotaged . | . . . . Parts Stolen . | . . . . Parts Stripped . | . . . . Power Chain Reactions . | . . . . Alert | -11 -10 -10 -10 ------- Run | Yrd Mat Min Sub Maximum Alert Level . | . . . . Low Security (%) 100 | 100 100 100 . Level 1 . | . . . . Level 2 . | . . . . Level 3 . | . . . . Level 4 . | . . . . Level 5 . | . . . . High Security . | . . . . Max Security . | . . . . Peak Influence 60 | 5 60 . . Initial . | . . . . Average 4 | . 10 . . Influence Increases 194 | 10 84 . 100 Destroy 0b10 Robot/C 100 | . 60 . 40 Destroy 0b10 Robot/NC 20 | 10 10 . . Destroy Leader 14 | . 14 . . Lose Combat Pursuer 60 | . . . 60 Influence Decreases 194 | 10 82 2 100 Entered New Map 2 | . . 2 . Time Decay 155 | 10 82 . 63 Lost Part 37 | . . . 37 Squads Dispatched . | . . . . Investigation . | . . . . Extermination . | . . . . Reinforcement . | . . . . Assault . | . . . . Garrison . | . . . . Intercept . | . . . . Searches Triggered . | . . . . Construction Impeded . | . . . . Haulers Reinforced . | . . . . Active Scanning Responses . | . . . . Cargo Convoy Interrupts . | . . . . Stealth | -11 -10 -10 -10 --------- Run | Yrd Mat Min Sub Distress Signals 1 | . . 1 . Communications Jammed . | . . . . Distress Signals . | . . . . Times Spotted 18 | . 5 3 10 Peak Tracking Total 4 | . 4 1 2 Tactical Retreats 2 | . . . 2 Traps | -11 -10 -10 -10 ------- Run | Yrd Mat Min Sub Traps Triggered . | . . . . Indirectly . | . . . . Trap Hack Attempts . | . . . . Triggered . | . . . . Disarmed . | . . . . Reprogrammed . | . . . . Reused . | . . . . Traps Extracted . | . . . . Installed . | . . . . Triggered . | . . . . Machines | -11 -10 -10 -10 ---------- Run | Yrd Mat Min Sub Machines Disabled 4 | . . . 4 Max in Single Turn 2 | . . . 2 Machines Repaired . | . . . . Machines Dismantled . | . . . . Machines Sabotaged . | . . . . Overloaded Fab Kills . | . . . . Hacking | -11 -10 -10 -10 --------- Run | Yrd Mat Min Sub Machines Accessed 2 | . 1 . 1 Terminals . | . . . . Fabricators . | . . . . Repair Stations . | . . . . Recycling Units 1 | . 1 . . Scanalyzers . | . . . . Garrison Access . | . . . . Total Hacks 3 | . 2 . 1 Successful 1 | . . . 1 Failed 2 | . 2 . . Catastrophic . | . . . . Database Lockouts . | . . . . Manual . | . . . . Terminals . | . . . . Fabricators . | . . . . Repair Stations . | . . . . Recycling Units 2 | . 2 . . Scanalyzers . | . . . . Garrison Access . | . . . . Terminal Hacks 1 | . . . 1 Proto ID Catalog 1 | . . . 1 Fabricator Hacks . | . . . . Repair Station Hacks . | . . . . Recycling Unit Hacks . | . . . . Scanalyzer . | . . . . Garrison Access Hacks . | . . . . Unauthorized Hacks . | . . . . Terminals . | . . . . Fabricators . | . . . . Repair Stations . | . . . . Recycling Units . | . . . . Scanalyzers . | . . . . Garrison Access . | . . . . Data Cores Recovered . | . . . . Used . | . . . . Hacking Detections 1 | . 1 . . Full Trace Events . | . . . . Feedback Events . | . . . . Feedback Blocked . | . . . . Robot Schematics Acquired . | . . . . Robots Built . | . . . . Authchips . | . . . . Time . | . . . . Total Robot Build Rating . | . . . . Part Schematics Acquired . | . . . . Parts Built . | . . . . Authchips . | . . . . Time . | . . . . Total Part Build Rating . | . . . . Part Studies Acquired . | . . . . Parts Repaired . | . . . . Time . | . . . . Parts Recycled . | . . . . Recycled Matter . | . . . . Retrieved Matter . | . . . . Retrieved Components . | . . . . Parts Scanalyzed . | . . . . Part Schematics Acquired . | . . . . Parts Damaged . | . . . . Bothacking | -11 -10 -10 -10 ------------ Run | Yrd Mat Min Sub Used RIF Installer . | . . . . Robots Hacked . | . . . . Non-combat . | . . . . Combat . | . . . . Robot Hacks Applied . | . . . . Relay Couplers Released . | . . . . Fabnet Peak Effective % . | . . . . Robots Rewired . | . . . . Allies Hacked . | . . . . Hacks Repelled . | . . . . Allies | -11 -10 -10 -10 -------- Run | Yrd Mat Min Sub Total Allies . | . . . . Largest Group . | . . . . Highest-Rated Group . | . . . . Highest-Rated Ally . | . . . . Total Orders . | . . . . Ally Attacks . | . . . . Total Damage . | . . . . Kills . | . . . . Allies Corrupted . | . . . . Allies Melted . | . . . . Intel | -11 -10 -10 -10 ------- Run | Yrd Mat Min Sub Active Infowar (turns) 2135 | 27 465 554 1089 Terrain 266 | . . 266 . Structural 1176 | . . 87 1089 Seismic 693 | 27 465 201 . Robot Analysis Total . | . . . . Derelict Logs Recovered 2 | . . 1 1 Drone Launches . | . . . . Drone Recoveries . | . . . . Exploration | -11 -10 -10 -10 ------------- Run | Yrd Mat Min Sub Turns Passed 2232 | 124 465 554 1089 Spaces Moved 986 | 70 261 154 501 Core 23 | 23 . . . Treads 709 | 47 261 154 247 Legs . | . . . . Wheels 254 | . . . 254 Hover . | . . . . Flight . | . . . . Fastest Speed 50 | 50 160 160 107 Average Speed 163 | 126 160 160 171 Slowest Speed 240 | 160 160 160 240 Overloaded Moves . | . . . . Propulsion Burnouts . | . . . . Robots Hopped . | . . . . Potential Cave-ins . | . . . . Cave-ins Triggered . | . . . . Exploration Rate (%) 31 | 4 40 38 42 Regions Visited 3 Branch Regions 2 Pre-discovered Areas 1 | . . . 1 Known Exits Taken . | . . . . Unknown Exits Taken 3 | 1 1 1 . Scrap Searched 1 | . . 1 . Spaces Dug . | . . . . Terrain Destroyed 40 | . . . 40 Melee . | . . . . Projectile 2 | . . . 2 AOE 38 | . . . 38 Terrain Rammed . | . . . . Walls Destroyed . | . . . . Machines Disabled . | . . . . Actions | -11 -10 -10 -10 --------- Run | Yrd Mat Min Sub Total 1446 | 93 290 440 623 Wait 309 | . 13 269 27 Move 983 | 69 260 153 501 Hop . | . . . . Pick Up 29 | 11 5 2 11 Fast Attach 1 | 1 . . . Attach 12 | 6 . . 6 Detach . | . . . . Swap 8 | . . 3 5 Drop 4 | . 2 2 . Fire 100 | 6 10 11 73 Melee . | . . . . Ram . | . . . . Kick . | . . . . Crush . | . . . . Escape Stasis . | . . . . Rewire . | . . . . Trap . | . . . . Miscellaneous . | . . . . Route ------- -11/Scrapyard -10/Materials (discovered 2 exits: [*Mat] / [*Min]) -10/Mines -10/Subcaves (discovered 1 exit: [*Rec]) History --------- Turn | Location | Event 6 | -11/Scrapyard | Discovered new exit (range 15) 125 | -11/Scrapyard | Entered Materials 316 | -10/Materials | Build established: Mutant 384 | -10/Materials | Discovered new exit (range 6) 486 | -10/Materials | Discovered new exit (range 9) 590 | -10/Materials | Entered Mines 690 | -10/Mines | Assembled infested the area 695 | -10/Mines | Assisted by a Guerilla fighting off Assembled 1049 | -10/Mines | Learned Materials emergency access door positions 1082 | -10/Mines | Discovered new exit (range 16) 1091 | -10/Mines | Received a Rocket Launcher from a helpful Derelict 1144 | -10/Mines | Entered Subcaves 1145 | -10/Subcaves | Approached by a straggling Scientist 1157 | -10/Subcaves | Learned location of Zion (-6) 1161 | -10/Subcaves | Ambushed by angry Subdweller bent on revenge 1171 | -10/Subcaves | Shifting Twisted Machinery released Flamer 1176 | -10/Subcaves | Shifting Twisted Machinery released Piercing Trap 1502 | -10/Subcaves | Shifting Twisted Machinery released Sub. Laser 1763 | -10/Subcaves | A swath of the cavern ceiling suddenly collapsed 1851 | -10/Subcaves | Discovered new exit (range 16) 1995 | -10/Subcaves | Core integrity fell below 50% 2039 | -10/Subcaves | Lost 5 parts (1p1n3w) 2092 | -10/Subcaves | Visited 4L-MR0's lab 2103 | -10/Subcaves | Found Meta Core 2205 | -10/Subcaves | Core integrity fell below 20% 2233 | -10/Subcaves | Destroyed by BJ-5HP(R) with Subdweller Machine Gun Last Messages --------------- little longer before you take them away? 02096_ Connecting with 4L-MR0's Prototype Logs... 02096_ Current location identified: Subcaves >>Proto ID Catalog Downloading prototype IDs... Meta Core Arachnoskeleton Cargo Legs Tripod Weapons Platform Hoverbase Flightbrick Gun Armor Tower Shield Power Bank Rainbow Chip VL-GR5's Exoskeleton "Deathgrip" Powered Cannon 02099_ Testing Chamber breached. 02103_ Acquired Meta Core. 02224_ Lgt. Ion Engine destroyed. Map ----- +----------------------------------------------------+ | ???????????????????????????????????????????????? | | ???????????????????????????????????????????????? | | ???????????????????????????????????????????????? | | ???????????????????????????????????????????????? | | ???????????????????????????????????????????????? | | ???????????????????????????????????????????????? | | ???????????????????????????????????????????????? | | ???????????????????????????????????????????????? | | ???????????????????????????????????????????????? | | ??????????????????????????? ??????????????????? | | ??????????????# ####????? ??????????????????? | | ?????????????### "####???? ???????????????????? | | ?????????????### ## ###??? ???????????????????? | | ?????????????##< < ##?? ????????????????????? | | ?????????????## ## ????????????????????? | | ?????????????## ### ?????????????????????? | | ?????????????## ## ?????????????????????? | | ?????????????## ??????????????????????? | | ?????????????## ??????????????????????? | | ???????????????## ???????????????????????? | | ???????????????### ??????????????????????? | | ????????????????### ##??????????????????????? | | ?????????????????## ##??? ##????????????????? | | ?????????????????## ## ##????????????????? | | ?????????????????### RR## ###???????????????? | | ?????????????????###; @# ### ???????????????? | | ??????????????####### ## ???????????????? | | ??????????????###### # # ????????????????? | | ??????????????## #### ## ##????????????????? | | ??????????????## ##????????????????? | | ??????????????## ###????????????????? | | ??????????????### ##?????????????????? | | ??????????????### ###?????????????????? | | ???????????????## ####?????????????????? | | ???????????????### ######???????????????? | | ???????????????#### #####???????????????? | | ???????????????#### ##???????????????? | | ???????????????#### ##???????????????? | | ???????????????## ## ##????????????? | | ??????????????### ## ###???????????? | | ??????????????## ## ## ? ####??????????? | | ??????????????### #### ## ###??????????? | | ??????????????######### ## ###?????????? | | ???????????????####?##### #### ??????? | | ?????????????????????##### # ## ??????? | | ??????????????????######## ?????? | | ?????????????????######## ?????? | | ?????????????????### ### # # ##?????? | | ?????????????????## #########?????? | | ?????????????????## #######?????? | +----------------------------------------------------+ Best States ------------- Heat Dissipation 25 Energy Generation 10 Energy Capacity 250 Matter Stores 300 Matter Capacity 300 Sight Range 16 Terrain Scan Range 16 Terrain Scan Density 10 Evasion (%) 50 Recoil Reduction 2 Item Schematics ----------------- None Robot Schematics ------------------ None Fabricated ------------ Nothing Repaired ---------- Nothing Studied --------- None Alien Tech Used ----------------- None Achievements -------------- None Challenges ------------ None Game ------ Seed BackupRemotePlatform Manual? 0 Play Time 00:10:26 Cumulative 416.8 hours Start 2025.10.24 @ 18:26:48 End 2025.10.24 @ 18:33:40 Sessions 1 Manual Loads 0 Difficulty Rogue Special Mode None Game No. 540 Rogue 540 Adventurer 0 Explorer 0 Win Type - Total 12 Types 6/0/1/2/1/0/2/0/0/0 Lore% 89 Gallery% 83 Achievement% 51 Wizard Run 0 Options --------- Layout 0 ASCII 0 Keyboard 0 Movement Mouse Keybinds 0 Fullscreen 1 Font 24/Terminus Map View 76x50 Zoom Use 0% Tactical HUD 1 Map Filters NONE Filters NONE Steam 1 RUN: 82131b42-eeaa-4bdb-8eaa-a4ad0ee49a3c